Workbook

Sheet Orçamento Av. Brasil (2) (hidden)
A1: Prefeitura Municipal de Lagoa Formosa
A2: Planilha de Quantidades e Preço DATA BASE - PLANILHA REFERENCIA SINAPI 05/2017 | F2: CT Nº:
F4: ART Nº:
A6: REFORMA - Quadra Poliesportiva
A7: Bairro Babilônia - Lagoa Formosa-MG
A8: ITEM | B8: CÓDIGO | D8: DISCRIMINAÇÃO DOS SERVIÇOS | E8: UNID. | F8: QUANT. | G8: PREÇOS
G9: Unitário | H9: Custo | I9: Custo+BDI(25%)
I10: 0.25
A11: 1 | B11: ALAMBRADO
A12: 1.1 | B12: 74244/001 | C12: SINAPI | D12: ALAMBRADO PARA QUADRA POLIESPORTIVA, ESTRUTURADO POR TUBOS DE ACO GALVANIZADO, COM COSTURA, DIN 2440, DIAMETRO 2", COM TELA DE ARAME GALVANIZADO, FIO 14 BWG E MALHA QUADRADA 5X5CM | E12: m² | F12: =Memória!D8 -> 4912 | G12: 102.82 | H12: =F12*G12 -> 505051.84 | I12: =H12+(H12*$I$10) -> 631314.8
A13: CUSTO TOTAL DO ÍTEM | I13: =I12 -> 631314.8
A14: 2 | B14: PINTURA DE PISO E DEMARCAÇÃO
A15: 2.1 | B15: 41595 | C15: SINAPI | D15: PINTURA ACRILICA DE FAIXAS DE DEMARCACAO EM QUADRA POLIESPORTIVA, 5 CM DE LARGURA | E15: m | F15: =memória!#REF! ->  | G15: 8.2 | H15: =F15*G15 ->  | I15: =H15+H15*$I$10 -> 
A16: 2.2 | B16: 74245/001 | C16: SINAPI | D16: PINTURA ACRILICA EM PISO CIMENTADO DUAS DEMAOS | E16: m² | F16: =memória!#REF! ->  | G16: 10.55 | H16: =F16*G16 ->  | I16: =H16+H16*$I$10 -> 
A17: CUSTO TOTAL DO ÍTEM | I17: =SUM(I15:I16) -> 
A18: 3 | B18: EQUIPAMENTOS
A19: 3.1 | B19: 68326 | C19: SINAPI | D19: ESTRUTURA METÁLICA SUPORTE TABELA BASQUETE | E19: unidade | F19: 1 | G19: 3544.41 | H19: =F19*G19 -> 3544.41 | I19: =H19+(H19*$I$10) -> 4430.5125
A20: 3.2 | B20: 25398 | C20: SINAPI | D20: CONJUNTO PARA FUTSAL COM TRAVES OFICIAIS DE 3,00 X 2,00 M EM TUBO DE ACO GALVANIZADO 3" COM REQUADRO EM TUBO DE 1", PINTURA EM PRIMER COM TINTA ESMALTE SINTETICO E REDES DE POLIETILENO FIO 4 MM | E20: unidade | F20: 1 | G20: 2607.46 | H20: =F20*G20 -> 2607.46 | I20: =H20+(H20*$I$10) -> 3259.325
A21: 3.3 | B21: 25400 | C21: SINAPI | D21: PAR DE TABELAS DE BASQUETE EM COMPENSADO NAVAL DE *1,80 X 1,20* M, COM ARO DE METAL E REDE (SEM SUPORTE DE FIXACAO) | E21: unidade | F21: 1 | G21: 1056.51 | H21: =F21*G21 -> 1056.51 | I21: =H21+(H21*$I$10) -> 1320.6375
A22: 3.4 | B22: 25399 | C22: SINAPI | D22: CONJUNTO PARA QUADRA DE VOLEI COM POSTES EM TUBO DE ACO GALVANIZADO 3", H =255 CM, PINTURA EM TINTA ESMALTE SINTETICO, REDE DE NYLON COM 2 MM, MALHA 10 X 10 CM E ANTENAS OFICIAIS EM FIBRA DE VIDRO | E22: unidade | F22: 1 | G22: 1582.96 | H22: =F22*G22 -> 1582.96 | I22: =H22+(H22*$I$10) -> 1978.7
A23: CUSTO TOTAL DO ÍTEM | I23: =SUM(I19:I22) -> 10989.175
A24: 4 | B24: LIMPEZA
A25: 4.1 | B25: 9537 | C25: SINAPI | D25: LIMPEZA FINAL DA OBRA | E25: m² | F25: =memória!#REF! ->  | G25: 1.87 | H25: =F25*G25 ->  | I25: =H25+(H25*$I$10) -> 
A26: CUSTO TOTAL DO ÍTEM | I26: =I25 -> 
A28: TOTAL GERAL DA OBRA | I28: =I26+I23+I17+I13 -> 
A32: Lagoa Formosa, 17 de maio de 2017
A39: ______________________________________________
A40: Eng° Civil CREA

Sheet ORÇAMENTO
A1: Prefeitura Municipal de Carmo do Paranaíba-MG
A2: Planilha de Quantidades e Preço DATA BASE - PLANILHA REFERENCIA SINAPI 03/2021
A3: EXECUÇÃO DE VALA SANITÁRIA e LAGOAS DE ESTABILIZAÇÃO - ATERRO CONTROLADO
A4: Carmo do Paranaíba - MG
A5: ITEM | B5: CÓDIGO | D5: DISCRIMINAÇÃO DOS SERVIÇOS | E5: UNID. | F5: QUANT. | G5: PREÇOS
G6: Unitário | H6: Custo | I6: Custo+BDI(25%)
I7: 0.25
A8: 1 | B8: EXECUÇÃO DA VALA SANITÁRIA
A9: 1.1 | B9: 101232 | C9: SINAPI | D9: ESCAVAÇÃO VERTICAL A CÉU ABERTO, EM OBRAS DE INFRAESTRUTURA, INCLUINDO CARGA, DESCARGA E TRANSPORTE, EM SOLO DE 1ª CATEGORIA COM ESCAVADEIRA HIDRÁULICA (CAÇAMBA: 1,2 M³ / 155 HP), FROTA DE 3 CAMINHÕES BASCULANTES DE 14 M³, DMT ATÉ 1 KM E VELOCIDADE MÉDIA14KM/H. AF_05/2020 | E9: M³ | F9: =Memória!D8 -> 4912 | G9: 6.37 | H9: =F9*G9 -> 31289.44 | I9: =H9+(H9*$I$7) -> 39111.8
A10: 1.2 | B10: 90099 | C10: SINAPI | D10: VALETA DE ANCORAGEM - ESCAVAÇÃO MECANIZADA DE VALA COM PROF. ATÉ 1,5 M (MÉDIA ENTRE MONTANTE E JUSANTE/UMA COMPOSIÇÃO POR TRECHO), COM RETROESCAVADEIRA (0,26 M3/88 HP), LARG. MENOR QUE 0,8 M, EM SOLO DE 1A CATEGORIA, EM LOCAIS COM ALTO NÍVEL DE INTERFERÊNCIA. | E10: M3 | F10: =((70+2)+((25+2)*2))*0.6*0.6 -> 45.36 | G10: 11.9 | H10: =F10*G10 -> 539.784 | I10: =H10+(H10*$I$7) -> 674.73
A11: 1.3 | B11: 25864 | C11: SINAPI | D11: MANTA TERMOPLASTICA, PEAD, GEOMEMBRANA LISA, E = 1,50 MM ( NBR 15352) | E11: M² | F11: =Memória!D10 -> 2655 | G11: 30.84 | H11: =F11*G11 -> 81880.2 | I11: =H11+(H11*$I$7) -> 102350.25
A12: 1.4 | B12: 100974 | C12: SINAPI | D12: CARGA E DESCARGA MECANICA DE SOLO UTILIZANDO CAMINHAO BASCULANTE 6,0M3 /16T E PA CARREGADEIRA SOBRE PNEUS 128 HP, CAPACIDADE DA CAÇAMBA 1,7 A 2,8 M3, PESO OPERACIONAL 11632 KG | E12: M³ | F12: =Memória!D11 -> 765.1 | G12: 5.91 | H12: =F12*G12 -> 4521.741 | I12: =H12+(H12*$I$7) -> 5652.17625
A13: 1.5 | B13: COMPOSIÇÃO | D13: EXECUÇÃO DE DRENOS DE CHORUME FORMATO ESPINHA DE PEIXE, SEÇÃO ESCAVADA DE 0,24 m2 e COLOCAÇÃO DE 0,6m3/m DE BRITA 2, COM TUBO PEAD CORRUGADO 160 mm, ENVOLTO EM CAMISA GEOTÊXTIL FILTRANTE GRAMATURA 200G/M2. COMPOSIÇÃO ANEXA | E13: M | F13: =Memória!D12 -> 142 | G13: =Composições!F12 -> 162.3243067 | H13: =F13*G13 -> 23050.05155 | I13: =H13+(H13*$I$7) -> 28812.56443
A14: 1.6 | B14: COMPOSIÇÃO | D14: EXECUÇÃO DE DRENOS VERTICAIS DE BIOGÁS, ESTRUTURADOS COM TELA DE AÇO Q-196, DIÂMETRO 0,90M, COM TUBO DE CONCRETO NO CENTRO DN 400MM PERFURADO, ENVOLTO POR PEDRA DE MÃO/RACHÃO LANÇADA, E TUBO DE CONCRETO DN 1000 MM NA BASE, INCLUSO MÃO DE OBRA E EQUIPAMENTOS | E14: M | F14: 15 | G14: =Composições!F26 -> 418.7988806 | H14: =F14*G14 -> 6281.983209 | I14: =H14+(H14*$I$7) -> 7852.479012
A15: 1.7 | B15: 5678 | C15: SINAPI | D15: RETROESCAVADEIRA SOBRE RODAS COM CARREGADEIRA, TRAÇÃO 4X4, POTÊNCIA LÍQ. 88 HP, CAÇAMBA CARREG. CAP. MÍN. 1 M3, CAÇAMBA RETRO CAP. 0,26 M3,PESO OPERACIONAL MÍN. 6.674 KG, PROFUNDIDADE ESCAVAÇÃO MÁX. 4,37 M - CHP DIURNO. AF_06/2014 | E15: H | F15: 20 | G15: 109.69 | H15: =F15*G15 -> 2193.8 | I15: =H15+(H15*$I$7) -> 2742.25
A16: 1.8 | B16: 5679 | C16: SINAPI | D16: RETROESCAVADEIRA SOBRE RODAS COM CARREGADEIRA, TRAÇÃO 4X4, POTÊNCIA LÍQ. 88 HP, CAÇAMBA CARREG. CAP. MÍN. 1 M3, CAÇAMBA RETRO CAP. 0,26 M3,PESO OPERACIONAL MÍN. 6.674 KG, PROFUNDIDADE ESCAVAÇÃO MÁX. 4,37 M - CHI DIURNO. AF_06/2014 | E16: H | F16: 20 | G16: 48.44 | H16: =F16*G16 -> 968.8 | I16: =H16+(H16*$I$7) -> 1211
A17: 1.9 | B17: 90781 | C17: SINAPI | D17: TOPOGRAFIA | E17: H | F17: =Memória!D16 -> 18 | G17: 35.25 | H17: =F17*G17 -> 634.5 | I17: =H17+(H17*$I$7) -> 793.125
A18: 1.10 | B18: 4750 | C18: SINAPI | D18: PEDREIRO | E18: H | F18: =Memória!D17 -> 56 | G18: 22.09 | H18: =F18*G18 -> 1237.04 | I18: =H18+(H18*$I$7) -> 1546.3
A19: 1.11 | B19: 6111 | C19: SINAPI | D19: SERVENTE DE OBRAS | E19: H | F19: =Memória!D18 -> 184 | G19: 15.71 | H19: =F19*G19 -> 2890.64 | I19: =H19+(H19*$I$7) -> 3613.3
A20: CUSTO TOTAL DO ÍTEM | I20: =SUM(I9:I19) -> 194359.9747
A22: 2 | B22: EXECUÇÃO DE UMA LAGOA DE ESTABILIZAÇÃO (VOLUME ÚTIL 1085 M3)
A23: 2.1 | B23: 101232 | C23: SINAPI | D23: ESCAVAÇÃO VERTICAL A CÉU ABERTO, EM OBRAS DE INFRAESTRUTURA, INCLUINDO CARGA, DESCARGA E TRANSPORTE, EM SOLO DE 1ª CATEGORIA COM ESCAVADEIRA HIDRÁULICA (CAÇAMBA: 1,2 M³ / 155 HP), FROTA DE 3 CAMINHÕES BASCULANTES DE 14 M³, DMT ATÉ 1 KM E VELOCIDADE MÉDIA14KM/H. AF_05/2020 | E23: M³ | F23: =Memória!D21 -> 1173.73 | G23: 6.37 | H23: =F23*G23 -> 7476.6601 | I23: =H23+(H23*$I$7) -> 9345.825125
A24: 2.2 | B24: 90099 | C24: SINAPI | D24: VALETA DE ANCORAGEM - ESCAVAÇÃO MECANIZADA DE VALA COM PROF. ATÉ 1,5 M (MÉDIA ENTRE MONTANTE E JUSANTE/UMA COMPOSIÇÃO POR TRECHO), COM RETROESCAVADEIRA (0,26 M3/88 HP), LARG. MENOR QUE 0,8 M, EM SOLO DE 1A CATEGORIA, EM LOCAIS COM ALTO NÍVEL DE INTERFERÊNCIA. | E24: M3 | F24: =Memória!D22 -> 35.28 | G24: 11.9 | H24: =F24*G24 -> 419.832 | I24: =H24+(H24*$I$7) -> 524.79
A25: 2.3 | B25: 25864 | C25: SINAPI | D25: MANTA TERMOPLASTICA, PEAD, GEOMEMBRANA LISA, E = 1,50 MM ( NBR 15352). *APENAS UMA LAGOA IMPERMEABILIZADA | E25: M² | F25: =Memória!D23 -> 885 | G25: =G11 -> 30.84 | H25: =F25*G25 -> 27293.4 | I25: =H25+(H25*$I$7) -> 34116.75
A26: 2.4 | B26: 96385 | C26: SINAPI | D26: EXECUÇÃO E COMPACTAÇÃO DE ATERRO COM SOLO PREDOMINANTEMENTE ARGILOSO EXCLUSIVE SOLO, ESCAVAÇÃO, CARGA E TRANSPORTE. AF_11/2019 | E26: M³ | F26: =Memória!D24 -> 275.11 | G26: 7.86 | H26: =F26*G26 -> 2162.3646 | I26: =H26+(H26*$I$7) -> 2702.95575
A27: 2.5 | B27: 97904 | C27: SINAPI | D27: CAIXA ENTERRADA HIDRÁULICA RETANGULAR EM ALVENARIA COM TIJOLOS CERÂMICOS MACIÇOS, DIMENSÕES INTERNAS: 1X1X0,6 M PARA REDE DE ESGOTO. 4 UNIDADES DUPLAS | E27: UNID. | F27: =Memória!D25 -> 4 | G27: 822.04 | H27: =F27*G27 -> 3288.16 | I27: =H27+(H27*$I$7) -> 4110.2
A28: 2.6 | B28: 38032 | C28: SINAPI | D28: TUBO DE PVC CORRUGADO DE DUPLA PAREDE PARA REDE COLETORA DE ESGOTO, DN 150 MM, JUNTA ELÁSTICA, INSTALADO EM LOCAL COM NÍVEL ALTO DE INTERFERÊNCIAS - FORNECIMENTO E ASSENTAMENTO. | E28: M | F28: =Memória!D26 -> 32 | G28: 45.09 | H28: =F28*G28 -> 1442.88 | I28: =H28+(H28*$I$7) -> 1803.6
A29: 2.7 | B29: 20181 | C29: SINAPI | D29: TÊ, PVC, SERIE R, DN 150 X 150 MM, JUNTA ELÁSTICA | E29: UNID. | F29: =Memória!D27 -> 1 | G29: 139.87 | H29: =F29*G29 -> 139.87 | I29: =H29+(H29*$I$7) -> 174.8375
A30: 2.8 | B30: 90099 | C30: SINAPI | D30: ESCAVAÇÃO MECANIZADA DE VALA COM PROF. ATÉ 1,5 M (MÉDIA ENTRE MONTANTE E JUSANTE/UMA COMPOSIÇÃO POR TRECHO), COM RETROESCAVADEIRA (0,26 M3/88 HP), LARG. MENOR QUE 0,8 M, EM SOLO DE 1A CATEGORIA, EM LOCAIS COM ALTO NÍVEL DE INTERFERÊNCIA. | E30: M3 | F30: =Memória!D28 -> 10.08 | G30: =G24 -> 11.9 | H30: =F30*G30 -> 119.952 | I30: =H30+(H30*$I$7) -> 149.94
A31: 2.9 | B31: 93379 | C31: SINAPI | D31: REATERRO MECANIZADO DE VALA COM RETROESCAVADEIRA (CAPACIDADE DA CAÇAMBA DA RETRO: 0,26 M³ / POTÊNCIA: 88 HP), LARGURA DE 0,8 A 1,5 M, PROFUNDIDADE ATÉ 1,5 M, COM SOLO DE 1ª CATEGORIA EM LOCAIS COM BAIXO NÍVEL DE INTERFERÊNCIA. | E31: M3 | F31: =Memória!D29 -> 10.08 | G31: 15.65 | H31: =F31*G31 -> 157.752 | I31: =H31+(H31*$I$7) -> 197.19
A32: 2.10 | B32: 98504 | C32: SINAPI | D32: PLANTIO DE GRAMA ESMERALDA EM PLACAS | E32: M2 | F32: =Memória!D30 -> 42.5 | G32: 8.81 | H32: =F32*G32 -> 374.425 | I32: =H32+(H32*$I$7) -> 468.03125
A33: 2.11 | B33: 5678 | C33: SINAPI | D33: RETROESCAVADEIRA SOBRE RODAS COM CARREGADEIRA, TRAÇÃO 4X4, POTÊNCIA LÍQ. 88 HP, CAÇAMBA CARREG. CAP. MÍN. 1 M3, CAÇAMBA RETRO CAP. 0,26 M3,PESO OPERACIONAL MÍN. 6.674 KG, PROFUNDIDADE ESCAVAÇÃO MÁX. 4,37 M - CHP DIURNO. AF_06/2014 | E33: H | F33: =Memória!D31 -> 20 | G33: 109.69 | H33: =F33*G33 -> 2193.8 | I33: =H33+(H33*$I$7) -> 2742.25
A34: 2.12 | B34: 5679 | C34: SINAPI | D34: RETROESCAVADEIRA SOBRE RODAS COM CARREGADEIRA, TRAÇÃO 4X4, POTÊNCIA LÍQ. 88 HP, CAÇAMBA CARREG. CAP. MÍN. 1 M3, CAÇAMBA RETRO CAP. 0,26 M3,PESO OPERACIONAL MÍN. 6.674 KG, PROFUNDIDADE ESCAVAÇÃO MÁX. 4,37 M - CHI DIURNO. AF_06/2014 | E34: H | F34: =Memória!D32 -> 20 | G34: 48.44 | H34: =F34*G34 -> 968.8 | I34: =H34+(H34*$I$7) -> 1211
A35: 2.13 | B35: 90781 | C35: SINAPI | D35: TOPOGRAFIA | E35: H | F35: =Memória!D33 -> 18 | G35: 35.25 | H35: =F35*G35 -> 634.5 | I35: =H35+(H35*$I$7) -> 793.125
A36: 2.14 | B36: 4750 | C36: SINAPI | D36: PEDREIRO | E36: H | F36: =Memória!D34 -> 32 | G36: 22.09 | H36: =F36*G36 -> 706.88 | I36: =H36+(H36*$I$7) -> 883.6
A37: 2.15 | B37: 6111 | C37: SINAPI | D37: SERVENTE DE OBRAS | E37: H | F37: =Memória!D35 -> 128 | G37: 15.71 | H37: =F37*G37 -> 2010.88 | I37: =H37+(H37*$I$7) -> 2513.6
A38: CUSTO TOTAL DO ÍTEM | I38: =SUM(I23:I37) -> 61737.69462
A39: TOTAL GERAL DA OBRA | I39: =SUM(I20,I38) -> 256097.6693
A40: CUSTO MENSAL DA OBRA - RATEIO 9 MESES | I40: =I39/9 -> 28455.29659
A41: 3 | B41: ELABORAÇÃO DE PROJETO EXECUTIVO
A42: 3.1 | B42: COMPOSIÇÃO | D42: INVESTIGAÇÃO, SONDAGENS E ANÁLISES DE SOLOS | E42: VB | F42: 1 | G42: =Composições!F51 -> 24164.485 | H42: =F42*G42 -> 24164.485 | I42: =H42+(H42*$I$7) -> 30205.60625
A43: 3.2 | B43: 40937 | C43: SINAPI | D43: PROJETO DE CONFORMAÇÃO E REGULARIZAÇÃO DO ATERRO CONTROLADO. VOLUMETRIA, DRENAGEM DE CHORUME, LAGOAS DE ESTABILIZAÇÃO, REDE DE EFLUENTE, DRENAGEM DE BIOGÁS, ESTABILIDADE GEOTÉCNICA, PLANILHA DE QUANTITATIVOS, MEMORIAL DESCRITIVO E ORÇAMENTOS. ENGENHEIRO CIVIL PLENO | E43: MÊS | F43: 2 | G43: 17596.57 | H43: =F43*G43 -> 35193.14 | I43: =H43+(H43*$I$7) -> 43991.425
A44: CUSTO TOTAL DO ITEM | I44: =SUM(I42:I43) -> 74197.03125
A45: CUSTO MENSAL DO ITEM - RATEIO 6 MESES | I45: =I44/6 -> 12366.17188
A46: 3 | B46: EQUIPAMENTOS E MÃO DE OBRA REGULAR (VALOR MENSAL)
A47: 3.1 | B47: COMPOSIÇÃO | D47: MÃO DE OBRA FIXA (1 OPERADOR DE MÁQUINAS) | E47: VB/MÊS | F47: 1 | G47: ='M.O. Aterro'!E49 -> 5657.36 | H47: =F47*G47 -> 5657.36 | I47: =H47+(H47*$I$7) -> 7071.7
A48: 3.2 | B48: COMPOSIÇÃO | D48: TRATOR DE ESTEIRAS | E48: VB/MÊS | F48: 1 | G48: =ESTEIRA!G31 -> 22132.5 | H48: =F48*G48 -> 22132.5 | I48: =H48+(H48*$I$7) -> 27665.625
A49: 3.3 | B49: COMPOSIÇÃO | D49: PICKUP | E49: VB/MÊS | F49: 1 | G49: =PICKUP!G45 -> 1924.1 | H49: =F49*G49 -> 1924.1 | I49: =H49+(H49*$I$7) -> 2405.125
A50: CUSTO TOTAL DO ITEM | I50: =SUM(I47:I49) -> 37142.45
A52: CUSTO MENSAL GLOBAL | I52: =I40+I50 -> 65597.74659
A53: Carmo do Paranaíba, 08 de junho de 2021
A60: ______________________________________________

Sheet Volumetria
A1: Prefeitura Municipal de Carmo do Paranaíba
A2: MEMÓRIA DE CÁLCULO DE QUANTITATIVOS DE RESÍDUOS - VOLUMETRIA
A5: Descrição | B5: unidade | C5: Quantidade
A6: População | B6: hab | C6: 30329
A7: Contribuição per capita | B7: kg/hab.dia | C7: 0.7
A8: Peso diário | B8: ton | C8: =ROUNDUP(C6*C7/1000,1) -> 21.3
A9: Peso mensal | B9: ton | C9: =C8*25.5 -> 543.15
A10: Densidade compactado | B10: ton/m³ | C10: 0.75
A11: Volume diário | B11: m³ | C11: =C8/C10 -> 28.4
A12: Volume mensal | B12: m³ | C12: =C9/C10 -> 724.2
A13: Volume com solo (30%) | B13: m³ | C13: =C12*1.3 -> 941.46
A14: Vida útil de cada vala | B14: meses | C14: 9
A15: Volume da vala padrão | B15: m³ | C15: =C14*C13 -> 8473.14
A16: Volume de uma seção de escavação típica, largura 23 m x altura 4 m, com camada sobreposta altura 3 m | B16: m³/m | C16: 128.5
A17: Comprimento estimado da vala | B17: m | C17: =C15/C16 -> 65.93883268
A18: Comprimento de vala adotado | B18: m | C18: 70
A19: Volume Sólido 3D - Escavação | B19: m3 | C19: =Memória!D8 -> 4912
A20: Volume Sólido 3D - Camada sobreposta | B20: m3 | C20: =3337.5 -> 3337.5
A21: Volume total medido | B21: m3 | C21: =SUM(C19:C20) -> 8249.5
A22: Percentual do volume estimado | B22: % | C22: =C21/C15 -> 0.9736060067

Sheet Memória
A1: Prefeitura Municipal de Carmo do Paranaíba
A4: MEMÓRIA DE CÁLCULO DE QUANTITATIVOS FÍSICOS
A6: ITEM | B6: DESCRIÇÃO | C6: FÓRMULAS | D6: TOTAL
A7: 1 | B7: =ORÇAMENTO!B8 -> EXECUÇÃO DA VALA SANITÁRIA
A8: 1.1 | B8: ESCAVAÇÃO VERTICAL A CÉU ABERTO, EM OBRAS DE INFRAESTRUTURA, INCLUINDO CARGA, DESCARGA E TRANSPORTE, EM SOLO DE 1ª CATEGORIA COM ESCAVADEIRA HIDRÁULICA (CAÇAMBA: 1,2 M³ / 155 HP), FROTA DE 3 CAMINHÕES BASCULANTES DE 14 M³, DMT ATÉ 1 KM E VELOCIDADE MÉDIA14KM/H. AF_05/2020 | C8: Volume=4912 (volume do sólido 3D) | D8: 4912 | E8: M³
A9: 1.2 | B9: VALETA DE ANCORAGEM - ESCAVAÇÃO MECANIZADA DE VALA COM PROF. ATÉ 1,5 M (MÉDIA ENTRE MONTANTE E JUSANTE/UMA COMPOSIÇÃO POR TRECHO), COM RETROESCAVADEIRA (0,26 M3/88 HP), LARG. MENOR QUE 0,8 M, EM SOLO DE 1A CATEGORIA, EM LOCAIS COM ALTO NÍVEL DE INTERFERÊNCIA. | C9: Volume = comprimento x área da seção escavada =((70+2)+(25+2)*2)*0,6*0,6 | D9: =((70+2)+(25+2)*2)*0.6*0.6 -> 45.36 | E9: M³
A10: 1.3 | B10: MANTA TERMOPLASTICA, PEAD, GEOMEMBRANA LISA, E = 1,50 MM ( NBR 15352) | C10: ARREDONDAR.PARA.CIMA((1 vala*(2*(137,01 m2+461,51 m2)+(área externa (72*27)-(área interna (70*25))+área de fundo(58*13)))*1,15 (coeficiente de perdas)/ área da bobina (295);0)*295 | D10: =ROUNDUP((2*(137.01+461.51)+(72*27-70*25)+58*13)*1.05*1.15/295,0)*295 -> 2655 | E10: M²
A11: 1.4 | B11: CARGA E DESCARGA MECANICA DE SOLO UTILIZANDO CAMINHAO BASCULANTE 6,0M3 /16T E PA CARREGADEIRA SOBRE PNEUS 128 HP, CAPACIDADE DA CAÇAMBA 1,7 A 2,8 M3, PESO OPERACIONAL 11632 KG | C11: 765,1 (sólido 3D CAD) | D11: 765.1 | E11: M³
A12: 1.5 | B12: EXECUÇÃO DE DRENOS DE CHORUME FORMATO ESPINHA DE PEIXE, SEÇÃO ESCAVADA DE 0,24 m2 e COLOCAÇÃO DE 0,6m3/m DE BRITA 2, COM TUBO PEAD CORRUGADO 160 mm, ENVOLTO EM CAMISA GEOTÊXTIL FILTRANTE GRAMATURA 200G/M2. COMPOSIÇÃO ANEXA | C12: 58+4x18 + 12 | D12: =58+(4*18)+12 -> 142 | E12: M
A13: 1.6 | B13: EXECUÇÃO DE DRENOS VERTICAIS DE BIOGÁS, ESTRUTURADOS COM TELA DE AÇO Q-138, DIÂMETRO 0,80M, COM TUBO DE CONCRETO NO CENTRO DN 400MM PERFURADO, ENVOLTO POR PEDRA DE MÃO/RACHÃO LANÇADA, E TUBO DE CONCRETO DN 1000 MM NA BASE, INCLUSO MÃO DE OBRA E EQUIPAMENTOS | C13: 3 (unidades) x 5 (altura em m) | D13: 15 | E13: M
A14: 1.7 | B14: RETROESCAVADEIRA SOBRE RODAS COM CARREGADEIRA, TRAÇÃO 4X4, POTÊNCIA LÍQ. 88 HP, CAÇAMBA CARREG. CAP. MÍN. 1 M3, CAÇAMBA RETRO CAP. 0,26 M3,PESO OPERACIONAL MÍN. 6.674 KG, PROFUNDIDADE ESCAVAÇÃO MÁX. 4,37 M - CHP DIURNO. AF_06/2014 | C14: 5 (dias) x 4 (horas produtivas) | D14: =5*4 -> 20 | E14: CHP
A15: 1.8 | B15: RETROESCAVADEIRA SOBRE RODAS COM CARREGADEIRA, TRAÇÃO 4X4, POTÊNCIA LÍQ. 88 HP, CAÇAMBA CARREG. CAP. MÍN. 1 M3, CAÇAMBA RETRO CAP. 0,26 M3,PESO OPERACIONAL MÍN. 6.674 KG, PROFUNDIDADE ESCAVAÇÃO MÁX. 4,37 M - CHI DIURNO. AF_06/2014 | C15: 5 (dias) x 4 (horas improdutivas) | D15: =5*4 -> 20 | E15: CHI
A16: 1.9 | B16: TOPOGRAFIA | C16: 3 (dias) x 6 (horas/dia) | D16: =3*6 -> 18 | E16: H
A17: 1.10 | B17: PEDREIRO | C17: 7 (dias) x 8 (horas/dia) | D17: =7*8 -> 56 | E17: H
A18: 1.11 | B18: SERVENTE DE OBRAS | C18: [4 (dias) x 8 (horas/dia) x 2 (homens)] + [3 (dias) x 8 (horas/dia) x 5 (homens)] | D18: =4*8*2+3*8*5 -> 184 | E18: H
A20: 2 | B20: =ORÇAMENTO!B22 -> EXECUÇÃO DE UMA LAGOA DE ESTABILIZAÇÃO (VOLUME ÚTIL 1085 M3)
A21: 2.1 | B21: ESCAVAÇÃO VERTICAL A CÉU ABERTO, EM OBRAS DE INFRAESTRUTURA, INCLUINDO CARGA, DESCARGA E TRANSPORTE, EM SOLO DE 1ª CATEGORIA COM ESCAVADEIRA HIDRÁULICA (CAÇAMBA: 0,8 M³ / 111 HP), FROTA DE 3 CAMINHÕES BASCULANTES DE 10 M³, DMT ATÉ 1 KM E VELOCIDADE MÉDIA14KM/H. AF_05/2020 | C21: Volume=1173,73 (volume da superíficie de comparação - Civil 3D) | D21: 1173.73 | E21: M³
A22: 2.2 | B22: VALETA DE ANCORAGEM - ESCAVAÇÃO MECANIZADA DE VALA COM PROF. ATÉ 1,5 M (MÉDIA ENTRE MONTANTE E JUSANTE/UMA COMPOSIÇÃO POR TRECHO), COM RETROESCAVADEIRA (0,26 M3/88 HP), LARG. MENOR QUE 0,8 M, EM SOLO DE 1A CATEGORIA, EM LOCAIS COM ALTO NÍVEL DE INTERFERÊNCIA. | C22: Volume = comprimento x área da seção escavada =((25+2)*2+(20+2)*2)*0,6*0,6 | D22: =((25+2)*2+((20+2)*2))*0.6*0.6 -> 35.28 | E22: M³
A23: 2.3 | B23: MANTA TERMOPLASTICA, PEAD, GEOMEMBRANA LISA, E = 1,50 MM ( NBR 15352) | C23: ARREDONDAR.PARA.CIMA((1 lagoa*(2*(106,07 m2+141,421 m2)+(área externa (26,5*21,5)-(área interna (25*20))+área de fundo(15*10)))*1,15 (coeficiente de perdas)/ área da bobina (295);0)*295 | D23: =ROUNDUP((1*(2*(106.07+141.421)+(26.5*21.5-25*20)+(15*10)))*1.15/295,0)*295 -> 885 | E23: M²
A24: 2.4 | B24: EXECUÇÃO E COMPACTAÇÃO DE ATERRO COM SOLO PREDOMINANTEMENTE ARGILOSO EXCLUSIVE SOLO, ESCAVAÇÃO, CARGA E TRANSPORTE. AF_11/2019 | C24: 275,11 (sólido 3D CAD) | D24: 275.11 | E24: M³
A25: 2.5 | B25: CAIXA ENTERRADA HIDRÁULICA RETANGULAR EM ALVENARIA COM TIJOLOS CERÂMICOS MACIÇOS, DIMENSÕES INTERNAS: 1X1X0,6 M PARA REDE DE ESGOTO | C25: 2 unidades de 2 m | D25: =2*2 -> 4 | E25: M
A26: 2.6 | B26: TUBO DE PVC CORRUGADO DE DUPLA PAREDE PARA REDE COLETORA DE ESGOTO, DN 150 MM, JUNTA ELÁSTICA, INSTALADO EM LOCAL COM NÍVEL ALTO DE INTERFERÊNCIAS - FORNECIMENTO E ASSENTAMENTO. | C26: 28m + 2m + 2m | D26: =28+2+2 -> 32 | E26: M
A27: 2.7 | B27: TÊ, PVC, SERIE R, DN 150 X 150 MM, JUNTA ELÁSTICA | C27: 1 unidade | D27: 1 | E27: UN
A28: 2.8 | B28: ESCAVAÇÃO MECANIZADA DE VALA COM PROF. ATÉ 1,5 M (MÉDIA ENTRE MONTANTE E JUSANTE/UMA COMPOSIÇÃO POR TRECHO), COM RETROESCAVADEIRA (0,26 M3/88 HP), LARG. MENOR QUE 0,8 M, EM SOLO DE 1A CATEGORIA, EM LOCAIS COM ALTO NÍVEL DE INTERFERÊNCIA. | C28: Volume = comprimento x área da seção escavada =(28*0,6*0,6) | D28: =(28)*0.6*0.6 -> 10.08 | E28: M3
A29: 2.9 | B29: REATERRO MECANIZADO DE VALA COM RETROESCAVADEIRA (CAPACIDADE DA CAÇAMBA DA RETRO: 0,26 M³ / POTÊNCIA: 88 HP), LARGURA DE 0,8 A 1,5 M, PROFUNDIDADE ATÉ 1,5 M, COM SOLO DE 1ª CATEGORIA EM LOCAIS COM BAIXO NÍVEL DE INTERFERÊNCIA. | C29: Volume = comprimento x área da seção escavada =(28*0,6*0,6) | D29: =28*0.6*0.6 -> 10.08 | E29: M3
A30: 2.10 | B30: PLANTIO DE GRAMA ESMERALDA EM PLACAS | C30: Área de superfície medida no ambiente CAD | D30: 42.5 | E30: M2
A31: 2.11 | B31: RETROESCAVADEIRA SOBRE RODAS COM CARREGADEIRA, TRAÇÃO 4X4, POTÊNCIA LÍQ. 88 HP, CAÇAMBA CARREG. CAP. MÍN. 1 M3, CAÇAMBA RETRO CAP. 0,26 M3,PESO OPERACIONAL MÍN. 6.674 KG, PROFUNDIDADE ESCAVAÇÃO MÁX. 4,37 M - CHP DIURNO. AF_06/2014 | C31: 5 (dias) x 4 (horas produtivas) | D31: =5*4 -> 20 | E31: CHP
A32: 2.12 | B32: RETROESCAVADEIRA SOBRE RODAS COM CARREGADEIRA, TRAÇÃO 4X4, POTÊNCIA LÍQ. 88 HP, CAÇAMBA CARREG. CAP. MÍN. 1 M3, CAÇAMBA RETRO CAP. 0,26 M3,PESO OPERACIONAL MÍN. 6.674 KG, PROFUNDIDADE ESCAVAÇÃO MÁX. 4,37 M - CHI DIURNO. AF_06/2014 | C32: 5 (dias) x 4 (horas improdutivas) | D32: =5*4 -> 20 | E32: CHI
A33: 2.13 | B33: TOPOGRAFIA | C33: 3 (dias) x 6 (horas/dia) | D33: =3*6 -> 18 | E33: H
A34: 2.14 | B34: PEDREIRO | C34: 4 (dias) x 8 (horas/dia) | D34: =4*8 -> 32 | E34: H
A35: 2.15 | B35: SERVENTE DE OBRAS | C35: [4 (dias) x 8 (horas/dia) x 4 (homens)] | D35: =D34*4 -> 128 | E35: H
A38: Carmo do Paranaíba, 08 de junho de 2021
A40: ______________________________________________

Sheet Composições
A1: Drenagem espinha de peixe. Material e mão de obra. Seção escavada de 0,24 m² e 0,6m3/m de brita, tubo PEAD corrugado 160 mm, envolto em geotêxtil filtrante 200g/m2
A2: 1.5 | B2: Descrição do item | C2: Unidade | D2: Qtde | E2: Unitário | F2: Total | G2: Referência
A3: 1.5.1 | B3: Escavação mecanizada de vala em solo de 1a categoria (largura 60cm, altura 40 cm) | C3: m³ | D3: =0.4*0.6 -> 0.24 | E3: 6.56 | F3: =D3*E3 -> 1.5744 | G3: SINAPI 90105
A4: 1.5.2 | B4: Lastro de vala com preparo de fundo, esp 5 cm, largura menor que 1,5 m (0,6m), com camada de brita, lançamento manual, baixo nível de interferência | C4: m³ | D4: =D5*0.6 -> 0.6 | E4: 4.84 | F4: =D4*E4 -> 2.904 | G4: SINAPI 101616
A5: 1.5.3 | B5: Tubo dreno, corrugado, espiralado, flexível, perfurado, em polietileno de alta densidade (PEAD), DN 160 mm (6") para drenagem (Norma DNIT093/2006 - EM) | C5: m | D5: 1 | E5: 19.08 | F5: =D5*E5 -> 19.08 | G5: SINAPI 00038053
A6: 1.5.4 | B6: Execução de dreno francês (cego) com brita núm. 2, sem frete, inclui mão de obra | C6: m³ | D6: 0.6 | E6: 124.74 | F6: =D6*E6 -> 74.844 | G6: SINAPI 73883
A7: 1.5.5 | B7: Transporte comercial de brita. Distância entre o aterro e a pedreira Ultracal em Varjão de Minas = 128 km. DMT até 30 km em via pavimentada com caminhão 14 m3 | C7: m3xkm | D7: =D6*30 -> 18 | E7: 1.42 | F7: =D7*E7 -> 25.56 | G7: SINAPI 95876
A8: 1.5.6 | B8: Transporte comercial de brita. Distância entre o aterro e a pedreira Ultracal em Varjão de Minas = 128 km. Excedente do DMT 30 km em via pavimentada com caminhão 14 m3 | C8: m3xkm | D8: =D6*(128-30) -> 58.8 | E8: 0.57 | F8: =D8*E8 -> 33.516 | G8: SINAPI 93593
A9: 1.5.7 | B9: Camisa geotêxtil filtrante 200g/m² para tubo drenante D=150 mm, Dext=250 mm | C9: m² | D9: =D5*PI()*0.25 -> 0.7853981634 | E9: 6.17 | F9: =D9*E9 -> 4.845906668 | G9: SINAPI 00004021
A10: Valor total | F10: =SUM(F3:F9) -> 162.3243067
A11: Quantidade | E11: Quantidade | F11: 1 | G11: metro
A12: Valor unitário | E12: Valor unitário | F12: =F10/F11 -> 162.3243067
A14: Drenagem de gás. Malha de aço Q196, diâmetro 0,95 m, tubo de concreto DN 400 mm, enchimento com pedra de mão jogada. Altura 5 m
A15: 1.6 | B15: Descrição do item | C15: Unidade | D15: Qtde | E15: Unitário | F15: Total | G15: Referência
A16: 1.6.1 | B16: Tubo de concreto armado para drenagem de águas pluviais, Classe PA-1, encaixe ponta e bolsa, diâmetro nominal de 1000mm | C16: m | D16: 1 | E16: 280.97 | F16: =D16*E16 -> 280.97 | G16: SINAPI 00007753
A17: 1.6.2 | B17: Tela de aço soldada nervurada Q138. Malha 10x10 cm, fios CA-60 4,2 mm. Painel de 2,45 x 6,0 m | C17: m² | D17: =ROUNDUP(5/6,0)*2.45*6 -> 14.7 | E17: 42.38 | F17: =D17*E17 -> 622.986 | G17: SINAPI 00007156
A18: 1.6.3 | B18: Tubo de concreto simples para água pluvial DN 400mm. Instalado em local com alto nível de interferência, com junta argamassada rígida | C18: m | D18: 5 | E18: 124.66 | F18: =D18*E18 -> 623.3 | G18: SINAPI 92219
A19: 1.6.4 | B19: Pedra de mão ou pedra rachão para arrimo/fundação (sem frete) | C19: m3 | D19: =(5*PI()*(3/PI()-0.3)^2/4) -> 1.684415393 | E19: 75.87 | F19: =D19*E19 -> 127.7965959 | G19: SINAPI 00004730
A20: 1.6.5 | B20: Transporte comercial de brita. Distância entre o aterro e a pedreira Ultracal em Varjão de Minas = 128 km. DMT até 30 km em via pavimentada com caminhão 14 m3 | C20: m3xkm | D20: =D19*30 -> 50.53246179 | E20: 1.42 | F20: =D20*E20 -> 71.75609575 | G20: SINAPI 95876
A21: 1.6.6 | B21: Transporte comercial de brita. Distância entre o aterro e a pedreira Ultracal em Varjão de Minas = 128 km. Excedente do DMT 30 km em via pavimentada com caminhão 14 m3 | C21: m3xkm | D21: =D19*(128-30) -> 165.0727085 | E21: 0.57 | F21: =D21*E21 -> 94.09144386 | G21: SINAPI 93593
A22: 1.6.7 | B22: Mão de obra para lançamento das pedras. Valor adaptado da composição para gabião caixa | C22: m3 | D22: =(5*PI()*(3/PI()-0.3)^2/4) -> 1.684415393 | E22: =72.16+25.67 -> 97.83 | F22: =D22*E22 -> 164.7863579 | G22: Fração mão de obra da composição SINAPI 92743
A23: 1.6.8 | B23: Escavadeira para lançamento das pedras. Valor adaptado da composição para gabião caixa | C23: m3 | D23: =(5*PI()*(3/PI()-0.3)^2/4) -> 1.684415393 | E23: =23.2+41.1 -> 64.3 | F23: =D23*E23 -> 108.3079098 | G23: Fração equipamento da composição SINAPI 92743
A24: Valor total | F24: =SUM(F16:F23) -> 2093.994403
A25: Quantidade | E25: Quantidade | F25: 5 | G25: metros
A26: Valor unitário | E26: Valor unitário | F26: =F24/F25 -> 418.7988806
A29: 3.1 - Plano de investigação da área
A30: 3.1 | B30: Descrição do item | C30: Unidade | D30: Qtde | E30: Unitário | F30: Total | G30: Referência
A31: 3.1.1 | B31: MOBILIZAÇÃO E DESMOBILIZAÇÃO POR EQUIPAMENTO DE SONDAGEM A PERCUSSÃO D = 2 1/2". | C31: VB | D31: 1 | E31: 700 | F31: =D31*E31 -> 700 | G31: SETOP SON-SPT-005
A32: 3.1.2 | B32: SONDAGEM A PERCUSSÃO D = 2 1/2" COM MEDIDA DE SPT (FATURAMENTO MÍNIMO = 30 M). Até 6 m de profundidade | C32: M | D32: 60 | E32: 75.62 | F32: =D32*E32 -> 4537.2 | G32: SETOP SON-SPT-010
A33: 3.1.3 | B33: PERFURAÇÃO DE ESTACA BROCA A TRADO MANUAL D = 300 MM. PARA COLETA DE MATERIAIS | C33: M | D33: 6 | E33: 44.28 | F33: =D33*E33 -> 265.68 | G33: SETOP FUN-TRA-020
A34: 3.1.4 | B34: MOBILIZAÇÃO E DESMOBILIZAÇÃO DE EQUIPAMENTO PARA BROCA TRADO DMT ATÉ 50 KM | C34: VB | D34: 1 | E34: 1000 | F34: =D34*E34 -> 1000 | G34: SETOP FUN-TRA-025
A35: 3.1.5 | B35: PERFURAÇÃO DE ESTACA BROCA A TRADO MECANIZADO D = 300 MM. PARA MAPEAMENTO DAS ÁREAS DE DEPÓSITO DE RESÍDUOS | C35: M | D35: 40 | E35: 27.5 | F35: =D35*E35 -> 1100 | G35: SETOP FUN-TRA-035
A36: 3.1.6 | B36: PREPARACAO DE AMOSTRAS PARA ENSAIO DE CARACTERIZACAO - SOLOS | C36: un | D36: 15 | E36: 55.04 | F36: =D36*E36 -> 825.6 | G36: SETOP ENS-SOL-100
A37: 3.1.7 | B37: ENSAIO DE GRANULOMETRIA POR PENEIRAMENTO E SEDIMENTACAO - SOLOS | C37: un | D37: 15 | E37: 95.08 | F37: =D37*E37 -> 1426.2 | G37: SETOP ENS-SOL-020
A38: 3.1.8 | B38: ENSAIO DE DENSIDADE REAL - SOLOS | C38: un | D38: 15 | E38: 45.03 | F38: =D38*E38 -> 675.45 | G38: SETOP ENS-SOL-065
A39: 3.1.9 | B39: ENSAIO DE LIMITE DE LIQUIDEZ - SOLOS | C39: un | D39: 15 | E39: 50.04 | F39: =D39*E39 -> 750.6 | G39: SETOP ENS-SOL-025
A40: 3.1.10 | B40: ENSAIO DE LIMITE DE PLASTICIDADE - SOLOS | C40: un | D40: 15 | E40: 45.03 | F40: =D40*E40 -> 675.45 | G40: SETOP ENS-SOL-030
A41: 3.1.11 | B41: ENSAIO DE TEOR DE UMIDADE - EM LABORATORIO - SOLOS | C41: un | D41: =D42*5 -> 15 | E41: 40.03 | F41: =D41*E41 -> 600.45 | G41: SETOP ENS-SOL-085
A42: 3.1.12 | B42: ENSAIO DE COMPACTACAO - AMOSTRAS NAO TRABALHADAS - ENERGIA NORMAL - SOLOS | C42: un | D42: 3 | E42: 95.08 | F42: =D42*E42 -> 285.24 | G42: SETOP ENS-SOL-035
A43: 3.1.13 | B43: ENSAIO DE ÍNDICE DE SUPORTE CALIFÓRNIA - ENERGIA NORMAL. NBR 9895. 3 UNIDADES. CUSTO SEM REFERÊNCIA. HORAS DE TÉCNICO DE LABORATÓRIO | C43: H | D43: =3*3 -> 9 | E43: 27.89 | F43: =D43*E43 -> 251.01 | G43: SINAPI 88321
A44: 3.1.14 | B44: ENSAIO DE PERMEABILIDADE À CARGA VARIÁVEL. NBR 14545. 3 UNIDADES. CUSTO SEM REFERÊNCIA. HORAS DE TÉCNICO DE LABORATÓRIO | C44: H | D44: =3*9 -> 27 | E44: 27.89 | F44: =D44*E44 -> 753.03 | G44: SINAPI 88321
A45: 3.1.15 | B45: ENSAIO DE INFILTRAÇÃO PELO MÉTODO DOS ANÉIS CONCÊNTRICOS. 3 UNIDADES. CUSTO SEM REFERÊNCIA. HORAS DE TÉCNICO DE LABORATÓRIO | C45: H | D45: =3*12 -> 36 | E45: 27.89 | F45: =D45*E45 -> 1004.04 | G45: SINAPI 88321
A46: 3.1.16 | B46: MASSA UNITÁRIA ESTADO SOLTO DO SOLO PARA DETERMINAÇÃO DO EMPOLAMENTO - NBR NM 45. 3 UNIDADES. CUSTO SEM REFERÊNCIA. HORAS DE TÉCNICO DE LABORATÓRIO | C46: H | D46: =3*1.5 -> 4.5 | E46: 27.89 | F46: =D46*E46 -> 125.505 | G46: SINAPI 88321
A47: 3.1.17 | B47: ENSAIO DE MASSA ESPECIFICA - IN SITU - METODO FRASCO DE AREIA - SOLOS | C47: un | D47: 3 | E47: 35.03 | F47: =D47*E47 -> 105.09 | G47: SETOP ENS-SOL-055
A48: 3.1.18 | B48: ENSAIO DE TEOR DE UMIDADE - PROCESSO SPEEDY - SOLOS | C48: un | D48: 3 | E48: 30.02 | F48: =D48*E48 -> 90.06 | G48: SETOP ENS-SOL-080
A49: 3.1.19 | B49: AUXILIAR DE LABORATORISTA DE SOLOS E DE CONCRETO (MENSALISTA) | C49: mês | D49: 1 | E49: 4030.95 | F49: =D49*E49 -> 4030.95 | G49: SINAPI 101385
A50: 3.1.20 | B50: TECNICO EM LABORATORIO E CAMPO DE CONSTRUCAO CIVIL (MENSALISTA) | C50: mês | D50: 1 | E50: 4962.93 | F50: =D50*E50 -> 4962.93 | G50: SINAPI 101456
A51: PREÇO TOTAL | F51: =SUM(F31:F50) -> 24164.485

Sheet Imagens CAD
G43: Cota (m) | H43: Referência
G44: 96 | H44: cota de topo
G45: 95 | H45: nível chorume topo
G46: 91.5 | H46: fundo projetado
G47: 91 | H47: fundo com reserva de lodo

Sheet M.O. Aterro
A1: MÃO DE OBRA - ATERRO SANITÁRIO
A3: CCT MOTORISTA - FETTROMINAS E SINDILURB - NÚMERO DE REGISTRO NO MTE: MG001347/2020
A4: CCT OPERADORES DE MÁQUINAS - SITICOP E SICEPOT - REGISTRO TEM: MG001906/2020
A5: PREVISTO 5% DE REAJUSTE NO SALÁRIO BASE, CESTA BÁSICA E VALE REFEIÇÃO
A7: MOTORISTAS - FETTROMINAS E SINDILURB
A8: Salário mensal | C8: 1 | D8: x | E8: =1733.23*1.05 -> 1819.8915 | F8: = | G8: =ROUND(C8*E8,2) -> 1819.89
A9: Insalubridade-G.médio | C9: 0.4 | D9: x | E9: 1100 | F9: = | G9: =ROUND(C9*E9,2) -> 440
A10: Hora extra 50% adicional | C10: 0 | D10: x | E10: =ROUND(E8/220*1.5,2) -> 12.41 | F10: = | G10: =ROUND(C10*E10,2) -> 0
A11: H.E Feriados 100% | D11: x | E11: =ROUND((E8/220)*2,2) -> 16.54 | F11: = | G11: =ROUND(C11*E11,2) -> 0
A12: Adicional H. Noturno | C12: 0 | D12: x | E12: =(E8/220)*0.2 -> 1.654446818 | F12: = | G12: =ROUND(C12*E12,2) -> 0
A13: Encargos sociais | C13: =ENCARGOS!$C$43 -> 0.7969 | D13: x | E13: =SUM(G8:G12) -> 2259.89 | F13: = | G13: =ROUND(C13*E13,2) -> 1800.91
A14: Salário mensal com encargos | G14: =SUM(G8:G13) -> 4060.8
A15: Vale refeição | C15: 22 | D15: x | E15: =13.76*1.05 -> 14.448 | F15: = | G15: =ROUND(C15*E15,2) -> 317.86
A16: Cesta Básica | C16: 1 | D16: x | E16: =179.2*1.05 -> 188.16 | F16: = | G16: =ROUND(C16*E16,2) -> 188.16
A17: Cesta natalina | C17: 1 | D17: x | E17: =E16/12 -> 15.68 | F17: = | G17: =ROUND(C17*E17,2) -> 15.68
A18: Cesta de gratificação férias (1/12) | C18: 2 | D18: x | E18: =E16/12 -> 15.68 | F18: = | G18: =ROUND(C18*E18,2) -> 31.36
A19: PAF | C19: 0 | D19: x | E19: 0 | F19: = | G19: =ROUND(C19*E19,2) -> 0
A20: Plano de saúde | C20: 0 | D20: x | E20: 0 | F20: = | G20: =ROUND(C20*E20,2) -> 0
A21: SESMT | C21: 1 | D21: x | E21: 25 | F21: = | G21: =ROUND(C21*E21,2) -> 25
A22: Seguro de vida | C22: 1 | D22: x | E22: 3.8 | F22: = | G22: =ROUND(C22*E22,2) -> 3.8
A23: Vale transporte (Deduzido 6%) | C23: 0 | D23: x | E23: 3.5 | F23: = | G23: =IF(E8*0.06<C23*E23,ROUND(C23*E23,2)-0.06*E8,0) -> 0
A24: Uniforme | C24: =C8 -> 1 | D24: x | E24: 40 | F24: = | G24: =ROUND(C24*E24,2) -> 40
A25: Custo mensal unitário | G25: =SUM(G14:G24) -> 4682.66
A27: OPERADOR DE MÁQUINAS - SICEPOT/SITICOP
A28: Salário mensal | C28: 1 | D28: x | E28: 2400 | F28: = | G28: =ROUND(C28*E28,2) -> 2400
A29: Insalubridade-G.Máximo | C29: 0.4 | D29: x | E29: 1100 | F29: = | G29: =ROUND(C29*E29,2) -> 440
A30: Hora extra 50% | C30: 0 | D30: x | E30: =ROUND((E28/220)*1.5,2) -> 16.36 | F30: = | G30: =ROUND(C30*E30,2) -> 0
A31: H.E Feriados | C31: 0 | D31: x | E31: =ROUND((E28/220)*2,2) -> 21.82 | F31: = | G31: =ROUND(C31*E31,2) -> 0
A32: Adicional H. Noturno | C32: 0 | D32: x | E32: =(E28/220)*0.2 -> 2.181818182 | F32: = | G32: =ROUND(C32*E32,2) -> 0
A33: Encargos sociais | C33: =ENCARGOS!$C$43 -> 0.7969 | D33: x | E33: =SUM(G28:G32) -> 2840 | F33: = | G33: =ROUND(C33*E33,2) -> 2263.2
A34: Salário mensal com encargos | G34: =SUM(G28:G33) -> 5103.2
A35: Vale refeição | C35: 22 | D35: x | E35: =13.76*1.05 -> 14.448 | F35: = | G35: =ROUND(C35*E35,2) -> 317.86
A36: Cesta básica | C36: 1 | D36: x | E36: =146*1.05 -> 153.3 | F36: = | G36: =ROUND(C36*E36,2) -> 153.3
A37: Cesta de gratificação férias (1/12) | C37: 0 | D37: x | E37: =E36/12 -> 12.775 | F37: = | G37: =ROUND(C37*E37,2) -> 0
A38: Cesta natalina (1/12) | C38: 0 | D38: x | E38: =E36/12 -> 12.775 | F38: = | G38: =E38*C38 -> 0
A39: PAF | C39: 1 | D39: x | E39: 0 | F39: = | G39: =ROUND(C39*E39,2) -> 0
A40: Plano de saúde | C40: 1 | D40: x | E40: 0 | F40: = | G40: =ROUND(C40*E40,2) -> 0
A41: SESMT | C41: 1 | D41: x | E41: 25 | F41: = | G41: =ROUND(C41*E41,2) -> 25
A42: Seguro de vida | C42: 1 | D42: x | E42: 18 | F42: = | G42: =ROUND(C42*E42,2) -> 18
A43: Vale transporte (deduzido 6%) | C43: 0 | D43: x | E43: 3.5 | F43: = | G43: =IF(E28*0.06<C43*E43,ROUND(C43*E43,2)-0.06*E28,0) -> 0
A44: Uniforme | C44: =C28 -> 1 | D44: x | E44: 40 | F44: = | G44: =ROUND(C44*E44,2) -> 40
A45: Custo mensal unitário | G45: =SUM(G34:G44) -> 5657.36
A47: RESUMO | B47: QTDE | C47: UNITÁRIO | E47: TOTAL
A48: MOTORISTA DE CAMINHÃO | B48: 0 | C48: =G25 -> 4682.66 | D48: = | E48: =B48*C48 -> 0
A49: OPERADOR DE EQUIPAMENTOS PESADOS | B49: 1 | C49: =G45 -> 5657.36 | D49: = | E49: =B49*C49 -> 5657.36
A50: TOTAL | E50: =SUM(E48:E49) -> 5657.36

Sheet ENCARGOS
A1: ENCARGOS SOCIAIS NO SETOR DE LIMPEZA PÚBLICA
A3: GRUPO A - Básico
A4: INSS | C4: 0.2
A5: FGTS | C5: 0.08
A6: SENAI | C6: 0.01
A7: SESI | C7: 0.015
A8: INCRA | C8: 0.002
A9: Salário Educação | C9: 0.025
A10: Seguro acidente de trabalho (RAT 3,00 x FAP 2,00) | C10: 0.06
A11: Contribuição Adicional por aposentadoria especial (25 anos)
A12: SEBRAE | C12: 0.006
A13: Taxa assistencial | C13: 0
A14: Sindicato patronal | C14: 0
A15: TOTAL GRUPO A | C15: =ROUND(SUM(C4:C14),4) -> 0.398
A17: GRUPO B - Encargos Sociais que recebem incidências do GRUPO A
A18: Férias (1/12x100) + (1/3/12x100) | C18: 0.1111
A19: 13º Salário | C19: 0.0833
A20: Auxílio doença (15/30/12x0,0078)x100 | C20: 0.0003
A21: Faltas justificadas (5/30/12)x100 | C21: 0.0139
A22: Faltas Legais (1/30/12)x100 | C22: 0.0028
A23: Aviso prévio traballhado (redução 7 dias) (7/30/12x100) | C23: 0.0194
A24: Licença maternidade | C24: 0.0002
A25: Licença paternidade (5/30/12x0,015x100) | C25: 0.0002
A26: TOTAL GRUPO B | C26: =SUM(C18:C25) -> 0.2312
A28: GRUPO C - Encargos Sociais que não recebem incidências do GRUPO A
A29: Multa FGTS (1x0,50x0,08x100) | C29: 0.04
A30: Multa FGTS (0,05x0,50x0,08x100) - colaboradores substituídos | C30: 0.002
A31: Indenização Art. 9, Lei 7238/84 (1/12x0,01)x100 | C31: 0.0008
A32: Feriados (12/365x100) | C32: 0.0329
A33: TOTAL GRUPO C | C33: =SUM(C29:C32) -> 0.0757
A35: GRUPO D - Taxas de reincidências
A36: Grupo A x Grupo B | C36: =C15*C26 -> 0.0920176
A37: TOTAL GRUPO D | C37: =ROUND(C36,4) -> 0.092
A39: GRUPO E - Encargos Sociais que recebem incidências do GRUPO A
A40: Indenização Art. 9, Lei 7238/84 | C40: 0
A41: TOTAL GRUPO E | C41: =ROUND(C40,4) -> 0
A43: TOTAL GERAL DE ENCARGOS SOCIAIS | C43: =ROUND(C15+C26+C33+C37+C41,4) -> 0.7969
A44: ENCARGOS SOCIAIS CONFORME ACORDÃO 6.771/09 DO TCU

Sheet ESTEIRA (inex) (hidden)
A1: PLANILHA ORÇAMENTÁRIA - TRATOR DE ESTEIRAS
A3: 1 - COMPOSIÇÃO DE CUSTO PARA TRATOR sobre esteiras (TCPO 2013 - ITEM 22.700.9.14). Diesel, potência 150 HP (112 kW), com lâmina de angulagem e inclinação hidráulica com passo variável, capacidade da lâmina de 4,28 m3 - unidade: h prod, FATOR DE CARGA ALTO.
A5: PREÇO DE AQUISIÇÃO DO CHASSI | D5: 300000
A7: Parâmetros de cálculo
A8: horas produtivas (mês) | B8: =6*25 -> 150 | C8: 6 horas diárias
A9: horas improdutivas | B9: =(25*8)-B8 -> 50
A11: 1.1 - CUSTO HORÁRIO PRODUTIVO (CHP)
A12: Trator de esteiras 150 HP | D12: UNIDADE | E12: QUANT. | F12: UNITÁRIO | G12: TOTAL
A13: Componente | B13: Referência | C13: Descrição
A14: CUSTO | B14: 22700.10.1.99 | C14: DEPRECIAÇÃO | D14: - | E14: =0.0000465/2 -> 2.325e-05 | F14: =$D$5 -> 300000 | G14: =E14*F14 -> 6.975 | I14: =G14*B8*12 -> 12555 | J14: =I14*5 -> 62775 | K14: =J14/D5 -> 0.20925
A15: CUSTO | B15: 22700.11.1.101 | C15: JUROS DO CAPITAL - CUSTO FINANCEIRO | D15: - | E15: =0.0000398/2 -> 1.99e-05 | F15: =$D$5 -> 300000 | G15: =E15*F15 -> 5.97 | I15: =G15*B8*12 -> 10746 | J15: =I15*5 -> 53730 | K15: =J15/D5 -> 0.1791
A16: CUSTO | B16: 22700.12.1.100 | C16: MANUTENÇÃO | D16: - | E16: 0.000132 | F16: =$D$5 -> 300000 | G16: =E16*F16 -> 39.6
A17: INSUMO | B17: PRÓPRIO | C17: COMBUSTÍVEL - ÓLEO DIESEL | D17: L | E17: 12 | F17: 4.45 | G17: =E17*F17 -> 53.4
A18: INSUMO | B18: taxa | C18: GRAXAS, LUBRIFICANTES, FILTROS (10% combustível) | D18: - | E18: 0.1 | F18: =G17 -> 53.4 | G18: =E18*F18 -> 5.34
A19: TOTAL CHP | G19: =ROUND(SUM(G14:G18),2) -> 111.29
A21: 1.2 - CUSTO HORÁRIO IMPRODUTIVO (CHI)
A22: Trator de esteiras 150 HP | D22: UNIDADE | E22: QUANT. | F22: UNITÁRIO | G22: TOTAL
A23: CUSTO | B23: 22700.11.1.101 | C23: JUROS DO CAPITAL - CUSTO FINANCEIRO | D23: - | E23: =E15 -> 1.99e-05 | F23: =$D$5 -> 300000 | G23: =E23*F23 -> 5.97
A24: CUSTO | B24: 22700.10.1.99 | C24: DEPRECIAÇÃO | D24: - | E24: =E14 -> 2.325e-05 | F24: =$D$5 -> 300000 | G24: =E24*F24 -> 6.975
A25: TOTAL CHI | G25: =ROUND(SUM(G23:G24),2) -> 12.95
A27: 2 - CÁLCULO DO CUSTO MENSAL INDIVIDUAL | I27: CUSTOS (1 EQUIPAMENTO) | L27: TOTAL SEM BDI (60 MESES)
A28: DESCRIÇÃO | D28: UNID. | E28: QUANT. | F28: UNITÁRIO | G28: TOTAL | I28: Custo operacional | J28: sem BDI | K28: com BDI
A29: CUSTO PRODUTIVO | D29: EQUIP. | E29: =B8 -> 150 | F29: =G19 -> 111.29 | G29: =ROUND(F29*E29,2) -> 16693.5 | I29: Combustível | J29: =ROUND(E29*G17,2) -> 8010 | K29: 10418.36 | L29: =J29*60 -> 480600
A30: CUSTO IMPRODUTIVO | D30: EQUIP. | E30: =B9 -> 50 | F30: =G25 -> 12.95 | G30: =ROUND(F30*E30,2) -> 647.5 | I30: Lubrificação | J30: =ROUND(E29*G18,2) -> 801 | K30: 1041.84 | L30: =J30*60 -> 48060
E31: CUSTO INDIVIDUAL MENSAL | G31: =SUM(G29:G30) -> 17341 | I31: Pneumáticos | J31: 0 | K31: 0 | L31: =J31*60 -> 0
J32: =SUM(J29:J31) -> 8811 | K32: 11460.2 | L32: =J32*60 -> 528660
G33: =G31+'M.O. Aterro'!G45 -> 22998.36 | I33: Custo financeiro | J33: sem BDI | K33: com BDI
G34: =G33*1.18 -> 27138.0648 | I34: Depreciação | J34: =ROUND(SUM($B$8:$B$9)*G14,2) -> 1395 | K34: 5397.81 | L34: =J34*60 -> 83700
I35: Financeiro | J35: =ROUND(SUM($B$8:$B$9)*G15,2) -> 1194 | K35: 4620.06 | L35: =J35*60 -> 71640
I36: Manutenção | J36: =ROUND(B8*G16,2) -> 5940 | K36: 11492.12 | L36: =J36*60 -> 356400
I37: Impostos/seguros | J37: 0 | K37: 0 | L37: =J37*60 -> 0
J38: =SUM(J34:J37) -> 8529 | K38: 21509.99 | L38: =J38*60 -> 511740
L39: =J39*60 -> 0
I40: TOTAL | J40: =J32+J38 -> 17340 | K40: =K32+K38 -> 32970.19 | L40: =J40*60 -> 1040400

Sheet ESTEIRA
A1: PLANILHA ORÇAMENTÁRIA - TRATOR DE ESTEIRAS
A3: 1 - COMPOSIÇÃO DE CUSTO PARA TRATOR sobre esteiras (TCPO 2013 - ITEM 22.700.9.14). Diesel, potência 150 HP (112 kW), com lâmina de angulagem e inclinação hidráulica com passo variável, capacidade da lâmina de 4,28 m3 - unidade: h prod, FATOR DE CARGA ALTO.
A5: PREÇO DE AQUISIÇÃO DO CHASSI | D5: 300000
A7: Parâmetros de cálculo
A8: horas produtivas (mês) | B8: =6*25 -> 150 | C8: 6 horas diárias
A9: horas improdutivas | B9: =(25*8)-B8 -> 50
A11: 1.1 - CUSTO HORÁRIO PRODUTIVO (CHP)
A12: Trator de esteiras 150 HP | D12: UNIDADE | E12: QUANT. | F12: UNITÁRIO | G12: TOTAL
A13: Componente | B13: Referência | C13: Descrição
A14: CUSTO | B14: 22700.10.1.99 | C14: DEPRECIAÇÃO | D14: - | E14: 4.65e-05 | F14: =$D$5 -> 300000 | G14: =E14*F14 -> 13.95
A15: CUSTO | B15: 22700.11.1.101 | C15: JUROS DO CAPITAL - CUSTO FINANCEIRO | D15: - | E15: 3.98e-05 | F15: =$D$5 -> 300000 | G15: =E15*F15 -> 11.94
A16: CUSTO | B16: 22700.12.1.100 | C16: MANUTENÇÃO | D16: - | E16: 0.000132 | F16: =$D$5 -> 300000 | G16: =E16*F16 -> 39.6
A17: INSUMO | B17: PRÓPRIO | C17: COMBUSTÍVEL - ÓLEO DIESEL | D17: L | E17: 15 | F17: 4.45 | G17: =E17*F17 -> 66.75
A18: INSUMO | B18: taxa | C18: GRAXAS, LUBRIFICANTES, FILTROS (10% combustível) | D18: - | E18: 0.1 | F18: =G17 -> 66.75 | G18: =E18*F18 -> 6.675
A19: TOTAL CHP | G19: =ROUND(SUM(G14:G18),2) -> 138.92
A21: 1.2 - CUSTO HORÁRIO IMPRODUTIVO (CHI)
A22: Trator de esteiras 150 HP | D22: UNIDADE | E22: QUANT. | F22: UNITÁRIO | G22: TOTAL
A23: CUSTO | B23: 22700.11.1.101 | C23: JUROS DO CAPITAL - CUSTO FINANCEIRO | D23: - | E23: =E15 -> 3.98e-05 | F23: =$D$5 -> 300000 | G23: =E23*F23 -> 11.94
A24: CUSTO | B24: 22700.10.1.99 | C24: DEPRECIAÇÃO | D24: - | E24: =E14 -> 4.65e-05 | F24: =$D$5 -> 300000 | G24: =E24*F24 -> 13.95
A25: TOTAL CHI | G25: =ROUND(SUM(G23:G24),2) -> 25.89
A27: 2 - CÁLCULO DO CUSTO MENSAL INDIVIDUAL
A28: DESCRIÇÃO | D28: UNID. | E28: QUANT. | F28: UNITÁRIO | G28: TOTAL
A29: CUSTO PRODUTIVO | D29: EQUIP. | E29: =B8 -> 150 | F29: =G19 -> 138.92 | G29: =ROUND(F29*E29,2) -> 20838
A30: CUSTO IMPRODUTIVO | D30: EQUIP. | E30: =B9 -> 50 | F30: =G25 -> 25.89 | G30: =ROUND(F30*E30,2) -> 1294.5
E31: CUSTO INDIVIDUAL MENSAL | G31: =SUM(G29:G30) -> 22132.5

Sheet PICKUP
A1: PLANILHA ORÇAMENTÁRIA - UTILITÁRIO PICK UP
A3: 1 - COMPOSIÇÃO DE CUSTO PARA UTILITÁRIO PICKUP
A5: PREÇOS DE AQUISIÇÃO
A6: MARCA | B6: ANO | C6: MODELO | D6: PREÇO UNITÁRIO | F6: REFERÊNCIA
A7: FIAT | B7: 2016 | C7: Strada Working 1.4 mpi Fire Flex 8V CD | D7: 47127 | F7: FIPE
A8: PREÇO DE AQUISIÇÃO DO CHASSI | E8: =D7 -> 47127
A10: Parâmetros de cálculo
A11: horas produtivas (mês) | B11: =25*2 -> 50 | C11: 2 HORAS DIÁRIAS | D11: Manutenção (K) | F11: 0.9
A12: horas improdutivas | B12: =(24*30)-B11 -> 670 | D12: Vida útil em anos | F12: 5
A13: Potência (HP) | D13: Vida útil em horas | F13: =F12*12*B11 -> 3000
A14: Percurso (km/mês) | B14: =25*30 -> 750 | C14: 30 KM/DIA | D14: Taxa de juros anual | F14: 0.05
A15: Vel. média (km/h) | B15: =B14/B11 -> 15 | D15: Fator depreciação | F15: 0.4
A16: Rendimento (km/L) | B16: 10 | D16: Vida dos pneus | F16: 40000
A18: 1.1 - CUSTO HORÁRIO PRODUTIVO (CHP)
A19: PICKUP FLEX | D19: UNIDADE | E19: QUANT. | F19: UNITÁRIO | G19: TOTAL
A20: INSUMO | B20: ="MANUTENÇÃO ("&F11*100&"% do preço de aquisição em 5 anos)" -> MANUTENÇÃO (90% do preço de aquisição em 5 anos) | D20: UN | E20: =(F11/(B11*F12*12)) -> 0.0003 | F20: =E8 -> 47127 | G20: =F20*E20 -> 14.1381
A21: INSUMO | B21: COMBUSTIVEL GASOLINA COMUM | D21: L | E21: =(B15/B16) -> 1.5 | F21: 5.99 | G21: =F21*E21 -> 8.985
A22: INSUMO | B22: GRAXAS, ÓLEOS LUBRIFICANTES, FILTROS (10% sobre combustível) | D22: UN | E22: 0.1 | F22: =G21 -> 8.985 | G22: =F22*E22 -> 0.8985
A23: INSUMO | B23: MATERIAL RODANTE | D23: UN | E23: =B15/$F$16 -> 0.000375 | F23: =5*350 -> 1750 | G23: =F23*E23 -> 0.65625
A24: INSUMO | B24: ="DEPRECIAÇÃO CHASSI ("&F15*100&"% preço aquisição em 5 anos)" -> DEPRECIAÇÃO CHASSI (40% preço aquisição em 5 anos) | D24: UN | E24: =(F15/(B11*F12*12))*(B11/SUM(B11:B12)) -> 9.259259259e-06 | F24: =AVERAGE(D7:E7) -> 47127 | G24: =F24*E24 -> 0.4363611111
A25: INSUMO | B25: REMUNERAÇÃO DO CAPITAL (aldo matos) | D25: UN | E25: =((((F15*E8)*(F12+1)/(2*F12))+((1-F15)*E8))*F14)/(F13/F12)/F25 -> 7e-05 | F25: =E8 -> 47127 | G25: =F25*E25 -> 3.29889
A26: INSUMO | B26: IMPOSTOS E SEGUROS (1% IPVA; TRLAV R$ 112,40, 4% SEGURO) | D26: UN | E26: =((0.04+0.01)/(B11*12)+(112.4/(F26*B11*12)))*(B11/SUM(B11:B12)) -> 6.063083873e-06 | F26: =F24 -> 47127 | G26: =F26*E26 -> 0.2857349537
A27: TOTAL CHP | G27: =ROUND(SUM(G20:G26),2) -> 28.7
A29: 1.2 - CUSTO HORÁRIO IMPRODUTIVO (CHI)
A30: PICKUP FLEX | D30: UNIDADE | E30: QUANT. | F30: UNITÁRIO | G30: TOTAL
A31: INSUMO | B31: ="DEPRECIAÇÃO CHASSI ("&F15*100&"% preço aquisição em 5 anos)" -> DEPRECIAÇÃO CHASSI (40% preço aquisição em 5 anos) | D31: UN | E31: =(F15/(B12*(F12*12)))*(B12/720) -> 9.259259259e-06 | F31: =AVERAGE(D7:E7) -> 47127 | G31: =F31*E31 -> 0.4363611111
A32: INSUMO | B32: IMPOSTOS E SEGUROS (1% IPVA; DPVAT R$ 70.00; TRLAV R$ 92,66, 4% SEGURO) | D32: UN | E32: =((0.04+0.01)/(B11*12)+(162.66/(F32*B11*12)))*(B11/SUM(B11:B12)) -> 6.186519051e-06 | F32: =F24 -> 47127 | G32: =F32*E32 -> 0.2915520833
A33: TOTAL CHI | G33: =ROUND(SUM(G31:G32),2) -> 0.73
A35: 2 - CÁLCULO DO CUSTO MENSAL INDIVIDUAL DA PICKUP
A36: DESCRIÇÃO | D36: UNID. | E36: QUANT. | F36: UNITÁRIO | G36: TOTAL
A37: CUSTO PRODUTIVO | D37: EQUIP. | E37: =B11 -> 50 | F37: =G27 -> 28.7 | G37: =ROUND(F37*E37,2) -> 1435
A38: CUSTO IMPRODUTIVO | D38: EQUIP. | E38: =B12 -> 670 | F38: =G33 -> 0.73 | G38: =ROUND(F38*E38,2) -> 489.1
E39: CUSTO INDIVIDUAL MENSAL | G39: =SUM(G37:G38) -> 1924.1
A41: 3 - CÁLCULO DO CUSTO MENSAL TOTAL DA PICKUP
A42: DESCRIÇÃO | D42: UNID. | E42: QUANT. | F42: UNITÁRIO | G42: TOTAL
A43: CUSTO PRODUTIVO | D43: EQUIP. | E43: 1 | F43: =G37 -> 1435 | G43: =ROUND(F43*E43,2) -> 1435
A44: CUSTO IMPRODUTIVO | D44: EQUIP. | E44: 1 | F44: =G38 -> 489.1 | G44: =ROUND(F44*E44,2) -> 489.1
E45: CUSTO TOTAL MENSAL | G45: =SUM(G43:G44) -> 1924.1

Sheet BDI
A1: PREFEITURA MUNICIPAL DE CARMO DO PARANAÍBA-MG
A2: COMPOSIÇÃO DO BDI DE FORMA ANALÍTICA
A3: =ORÇAMENTO!A3:I3 -> EXECUÇÃO DE VALA SANITÁRIA e LAGOAS DE ESTABILIZAÇÃO - ATERRO CONTROLADO
A4: OBRAS DE INFRAESTRUTURA
A5: =ORÇAMENTO!A4:I4 -> Carmo do Paranaíba - MG
A6: 1) ADMINISTRAÇÃO CENTRAL - ( 3,00% a 5,50%)
B8: 0.055
F9: Adm. Central, Seguros e Garantias, Riscos | J9: =1+(B8+B12+B17) -> 1.076
A10: 2) SEGUROS E GARANTIAS - ( 0,80% a 1,00%) | F10: Despesas Financeiras | J10: =1+B21 -> 1.012
F11: Lucro/Remuneração | J11: =1+B25 -> 1.0831
B12: 0.009 | F12: Impostos (com desoneração) | J12: =1-C32-E32-G32 -> 0.9335
F13: Impostos (sem desoneração) | J13: =1-C32-E32-G32 -> 0.9335
A15: 3) RISCOS - ( 0,97% a 1,27%)
B17: 0.012
A19: 4) DESPESAS FINANCEIRAS - ( 0,59% a 1,39%)
B21: 0.012
A23: 5) LUCRO/REMUNERAÇÃO - (6,16% a 8,96%)
B25: 0.0831
A27: 6) IMPOSTOS
A28: Os valores dos índices dos impostos serão os indicados abaixo, não podem ser alterados.
A29: ISS = 2% - Justificado pela Legislação Tributária Municipal com apresentação da base de cálculo da alíquota.
B32: COFINS= | C32: 0.03 | D32: PIS= | E32: 0.0065 | F32: ISS= | G32: 0.03
A35: Sem desoneração: | C35: SINAPI ABRIL/2021
B37: BDI= | D37: =(J9*J10*J11/J12)-1 -> 0.263417876
